bitfinex/quotes_ETHUSD_20250413
["timestamp","ask_amount","ask_price","bid_price","bid_amount"]
[1744553098665,13.73288,1577.3,1576.4,7.52814]
[1744553098867,6.34193,1576.9,1576.5,9.34311]
[1744553099111,6.34197,1576.8,1576.5,3.0]
[1744553099273,6.34312,1576.6,1576.2,7.52857]
[1744553099480,6.34262,1576.7,1576.2,9.9841003]
[1744553099708,6.34307,1576.6,1576.2,4.24803418]
[1744553099870,7.61992,1576.5,1576.1,1.27529297]
[1744553100207,6.34401,1576.3,1575.9,6.34552]
[1744553100372,12.68836,1576.3,1575.9,6.34552]
[1744553100571,1.2764,1576.5,1575.8,1.1834]
[1744553100771,7.61968,1576.5,1576.1,6.34452]
[1744553101003,1.2764,1576.7,1576.4,6.34337]
[1744553101217,3.0,1577.0,1576.5,0.634337]
[1744553101218,1.2764,1577.0,1576.5,0.634337]
[1744553101372,6.34212,1576.8,1576.5,0.634337]
[1744553101567,6.3425,1576.7,1576.4,3.0]
[1744553101902,7.61756,1577.0,1576.5,6.62374087]
[1744553102126,7.61686,1577.2,1576.6,1.1834]
[1744553102264,7.61686,1577.2,1576.8,12.68351]
[1744553102265,6.34046,1577.2,1576.8,12.68351]
[1744553102461,6.34009,1577.3,1576.6,1.24681455]
[1744553102462,6.34009,1577.3,1577.0,6.34114]
[1744553102694,6.38965,1577.4,1577.1,0.06340083]
[1744553102864,6.38957,1577.4,1577.1,1.1834]
[1744553103078,6.38957,1577.4,1577.1,7.52414]
[1744553103306,0.05,1577.4,1577.1,7.52414]
[1744553103535,0.05,1577.4,1577.2,6.4034764]
[1744553103831,0.05,1577.4,1577.1,8.910604]
[1744553104041,0.05,1577.4,1577.1,8.910464]
[1744553104238,0.05,1577.4,1577.2,6.4037248]
[1744553104390,0.05,1577.4,1577.3,6.33994]
[1744553104591,0.05,1577.4,1577.1,2.569924]
[1744553104916,6.38972,1577.4,1577.0,6.34098]
[1744553105100,12.7294,1577.4,1577.0,6.3409]
[1744553105307,6.38954,1577.4,1577.0,3.0]
[1744553105506,0.05,1577.4,1576.8,3.0]
[1744553105703,6.34202,1576.8,1576.6,1.2539]
[1744553105926,7.50968,1577.2,1576.7,0.21734322]
[1744553106109,6.34195,1576.8,1576.7,0.21734322]
[1744553106857,6.34385,1576.4,1576.0,7.59891]
[1744553107022,6.34446,1576.2,1575.8,13.94531]
[1744553107226,7.51312,1576.4,1575.8,1.2539]
[1744553107227,6.34398,1576.3,1575.8,1.2539]
[1744553107408,6.34335,1576.5,1576.1,6.34459]
[1744553107613,6.34335,1576.5,1576.1,0.81719956]
[1744553107849,7.5121,1576.6,1576.2,6.34419]
[1744553108027,6.3432,1576.5,1576.1,7.16171956]
[1744553108552,6.3432,1576.5,1576.2,0.21738973]
[1744553109255,6.34362,1576.4,1576.2,0.21738973]
[1744553109560,6.34362,1576.4,1576.1,1.2539]
[1744553109851,6.34362,1576.4,1576.0,9.34514]
[1744553110039,6.34319,1576.5,1576.1,6.34476]
[1744553110250,6.34319,1576.5,1576.1,6.40819914]
[1744553110559,16.91534,1576.8,1576.1,0.06343914]
[1744553110560,6.34437,1576.2,1576.1,0.06343914]
[1744553110713,6.34499,1576.1,1575.7,1.2077]
[1744553110915,6.34469,1576.2,1575.7,1.963148]
[1744553111120,6.34425,1576.3,1575.9,6.34539]
[1744553111329,12.68853,1576.3,1575.9,6.34539]
[1744553111555,6.34447,1576.2,1575.8,6.56325003]
[1744553111759,6.34512,1576.1,1575.8,0.21729003]
[1744553111912,7.58194,1576.4,1575.5,9.405]
[1744553112259,7.58474,1575.7,1575.3,6.56862]
[1744553112419,1.2382,1575.7,1575.3,6.56857]
[1744553112620,6.34562,1575.9,1575.5,6.34719]
[1744553113350,6.34562,1575.9,1575.5,6.41065454]
[1744553113560,12.69232,1575.8,1575.4,6.34755]
[1744553113732,6.34733,1575.5,1575.3,0.2208]
[1744553114347,6.34759,1575.4,1575.3,0.2208]
[1744553115653,6.34733,1575.5,1575.3,0.2208]
[1744553115851,1.2382,1575.6,1575.3,0.2208]
[1744553116036,6.34759,1575.4,1575.3,0.2208]
[1744553120276,1.2382,1575.6,1575.3,0.2208]
[1744553120465,21.86216,1575.8,1575.4,6.34757]
[1744553120648,12.45616,1575.8,1575.4,6.34757]
[1744553121393,6.11,1575.8,1575.5,6.34701]
[1744553122280,6.11,1575.8,1575.4,7.60605]
[1744553122451,12.45626,1575.8,1575.4,7.60605]
[1744553123392,12.45626,1575.8,1575.4,1.2585]
[1744553123693,6.34652,1575.7,1575.4,1.2585]
[1744553124881,6.3468,1575.6,1575.4,1.2585]
[1744553125061,6.34759,1575.4,1575.3,0.2208]
[1744553125490,6.34737,1575.5,1575.3,0.2208]
[1744553125653,12.69484,1575.5,1575.3,0.2208]
[1744553126012,7.61859,1575.4,1575.3,0.2208]
[1744553126588,12.69482,1575.5,1575.3,0.2208]
[1744553126802,6.34759,1575.4,1575.3,0.2208]
[1744553129328,6.34737,1575.5,1575.3,0.2208]
[1744553129617,6.34759,1575.4,1575.3,0.2208]
[1744553131528,6.6134806,1575.4,1575.3,0.2208]
[1744553131689,6.68673862,1575.4,1575.3,0.2208]
[1744553131885,6.35022,1574.8,1574.4,7.61764]
[1744553132086,1.2041,1575.0,1574.4,7.61764]
[1744553132087,6.34922,1575.0,1574.6,6.35066]
[1744553132425,0.33750686,1574.9,1574.5,6.35117]
[1744553132626,6.35034,1574.8,1574.4,7.61779]
[1744553132927,12.70125,1574.7,1574.4,1.2662]
[1744553133226,6.68805686,1574.7,1574.4,1.2662]
[1744553133537,13.03876686,1574.7,1574.4,1.2662]
[1744553133749,0.33750686,1574.7,1574.4,7.61768]
[1744553134055,6.35097,1574.6,1574.3,3.0]
[1744553134408,0.32462493,1574.5,1574.2,12.70451]
[1744553134605,6.35097,1574.6,1574.2,12.76802686]
[1744553134850,6.35097,1574.6,1574.2,6.35222]
[1744553135007,6.67604493,1574.5,1574.1,7.66884]
[1744553135325,1.2041,1574.7,1574.3,6.35194]
[1744553135326,7.55465,1574.7,1574.3,6.35194]
[1744553135845,0.32462493,1574.6,1574.3,6.35194]
[1744553136345,0.32462493,1574.6,1574.5,7.53632]
[1744553136646,6.34975,1574.9,1574.5,7.53632]
[1744553136809,0.29500044,1574.6,1574.5,7.53632]
[1744553137011,12.69959,1574.9,1574.5,7.53632]
[1744553137211,0.29512697,1574.8,1574.5,13.88731]
[1744553137705,12.69972,1574.9,1574.5,7.53609]
[1744553137902,0.29512697,1574.7,1574.5,7.53609]
[1744553138142,6.34975,1574.9,1574.5,13.88709]
[1744553138341,0.29512697,1574.6,1574.5,13.88709]
[1744553138550,6.34922,1575.0,1574.6,6.35062]
[1744553139047,12.69868,1575.0,1574.6,6.3506]
[1744553139541,6.34922,1575.0,1574.5,7.53627]
[1744553139840,6.35003,1574.8,1574.5,7.53627]
[1744553140231,12.70128,1574.7,1574.3,10.62918]
[1744553140405,1.2443,1574.9,1574.5,6.35103]
[1744553140406,13.9438,1574.9,1574.5,6.35103]
[1744553140608,13.94387,1574.9,1574.5,6.35103]
[1744553140920,6.35004,1574.8,1574.5,6.35103]
[1744553141123,6.34936,1575.0,1574.6,6.35062]
[1744553141324,6.34936,1575.0,1574.6,12.70124]
[1744553141651,6.34961,1574.9,1574.5,6.35108]
[1744553141821,6.35016,1574.8,1574.4,12.70284]
[1744553142024,6.34961,1574.9,1574.5,6.35104]
[1744553142224,6.34961,1574.9,1574.5,12.92456907]
[1744553142420,6.34926,1575.0,1574.6,6.35065]
[1744553142655,6.35005,1574.8,1574.5,7.86598598]
[1744553143149,6.34921,1575.0,1574.5,0.22248907]
[1744553143354,6.35028,1574.8,1574.4,6.35157]
[1744553143554,6.35028,1574.8,1574.4,6.35141]
[1744553143965,6.34968,1574.9,1574.6,6.35075]
[1744553145150,12.6996,1574.9,1574.5,6.3512]
[1744553145350,12.6996,1574.9,1574.6,0.22102991]
[1744553146036,6.35023,1574.8,1574.6,0.22102991]
[1744553146237,6.34967,1574.9,1574.3,7.62929]
[1744553146541,6.60476039,1574.7,1574.3,13.9811]
[1744553146866,0.25422039,1574.6,1574.3,7.62913]
[1744553147063,6.60505039,1574.6,1574.2,6.35237]
[1744553147363,6.35138,1574.5,1574.2,6.35237]
[1744553147558,6.35138,1574.5,1574.3,0.22097671]
[1744553147759,0.25244517,1574.4,1574.3,0.22097671]
[1744553149563,6.35126,1574.5,1574.3,0.22097671]
[1744553149730,0.25244517,1574.4,1574.3,0.22097671]
[1744553150445,0.25244517,1574.4,1574.1,13.97743]
[1744553151374,0.25244517,1574.4,1574.2,0.2208934]
[1744553152275,0.25244517,1574.4,1574.1,13.97724]
[1744553152969,6.60413517,1574.4,1574.1,7.62454]
[1744553153382,0.25244517,1574.4,1574.1,7.62454]
[1744553153547,0.25244517,1574.4,1574.2,6.3521]
[1744553153748,0.25244517,1574.4,1574.3,11.2063396]
[1744553153939,6.11,1574.8,1574.7,6.35041]
[1744553154140,6.34883,1575.1,1574.8,6.34999]
[1744553154389,15.48848,1575.2,1574.8,6.34999]
[1744553154570,7.3154,1575.3,1574.8,7.108999]
[1744553154571,7.55353,1575.3,1574.8,7.108999]
[1744553154766,1.2054,1575.3,1574.9,6.3496]
[1744553155071,12.69565,1575.4,1575.0,6.57021297]
[1744553155274,6.34801,1575.3,1575.0,6.57021297]
[1744553155887,6.34888,1575.1,1574.7,7.59121]
[1744553156101,6.34888,1575.1,1574.7,15.635605]
[1744553156250,6.34804,1575.3,1574.8,6.34994]
[1744553156451,12.69554,1575.4,1575.0,6.34906]
[1744553156996,6.34772,1575.4,1575.0,12.69812]
[1744553157795,6.34772,1575.4,1575.1,0.22124065]
[1744553158193,6.34772,1575.4,1575.1,1.46204065]
[1744553158692,6.88170664,1575.4,1575.1,1.46204065]
[1744553158898,1.2054,1575.5,1575.1,0.22124065]
[1744553159055,6.34785,1575.4,1575.0,6.34906]
[1744553159251,12.69568,1575.4,1575.0,6.34906]
[1744553159693,6.34806,1575.3,1575.0,6.34906]
[1744553159897,6.34806,1575.3,1574.9,7.59018]
[1744553160061,6.34806,1575.3,1574.9,8.984197]
[1744553160263,6.34806,1575.3,1574.9,15.333637]
[1744553160500,6.34806,1575.3,1574.9,7.59018]
[1744553160697,6.34855,1575.2,1574.9,1.2408]
[1744553160991,6.34855,1575.2,1574.8,15.6997]
[1744553161199,6.34855,1575.2,1575.0,0.22136317]
[1744553161559,0.15922489,1575.1,1575.0,0.22136317]
[1744553161858,6.3488,1575.1,1575.0,0.22136317]
[1744553162082,6.34951,1575.0,1574.6,9.39948]
[1744553162328,6.34962,1574.9,1574.6,0.0488]
[1744553162499,6.35017,1574.8,1574.6,0.0488]
[1744553162679,6.50939489,1574.8,1574.7,0.22139088]
[1744553163270,0.15922489,1574.8,1574.7,6.57180088]
[1744553163474,7.59264,1575.1,1574.7,7.23386097]
[1744553163694,0.15922489,1574.8,1574.7,6.57162088]
[1744553164013,6.34894,1575.1,1574.8,6.35]
[1744553164218,12.6971,1575.2,1574.8,6.35]
[1744553164422,6.34881,1575.1,1574.7,12.92183088]
[1744553164593,6.34881,1575.1,1574.7,12.70044]
[1744553164787,12.69797,1575.1,1574.7,6.35021]
[1744553164998,6.34881,1575.1,1574.7,13.975374]
[1744553165204,6.34881,1575.1,1574.7,13.975324]
[1744553165534,7.56861,1575.6,1575.1,6.34865]
[1744553165815,6.34657,1575.7,1575.3,12.69567]
[1744553166126,6.3466,1575.7,1575.2,7.56026]
[1744553166321,6.34867,1575.2,1574.9,1.2119]
[1744553166617,6.349,1575.1,1574.7,7.56212]
[1744553166816,6.34882,1575.1,1574.8,6.41326216]
[1744553166976,12.69786,1575.1,1574.7,7.56226]
[1744553167183,6.34924,1575.0,1574.7,1.2119]
[1744553167381,6.34881,1575.1,1574.8,0.06349498]
[1744553167618,6.34881,1575.1,1574.7,7.56201]
[1744553167817,6.34846,1575.2,1574.8,6.34982]
[1744553168332,6.34805,1575.3,1574.9,0.22122837]
[1744553168637,1.2218,1575.5,1575.1,7.5604]
[1744553168841,6.34759,1575.4,1575.1,1.2119]
[1744553169406,7.56903,1575.5,1575.1,7.56033]
[1744553169615,6.34723,1575.5,1575.1,7.56033]
[1744553169870,1.1867,1576.0,1575.2,6.89801]
[1744553170013,6.34572,1575.9,1575.5,6.34703]
[1744553170348,7.53188,1576.0,1575.4,6.3472]
[1744553170349,6.34616,1575.8,1575.4,12.69465]
[1744553170549,6.34558,1575.9,1575.3,1.1871]
[1744553170704,6.34769,1575.4,1575.1,4.1871]
[1744553170909,6.34725,1575.5,1575.1,1.1871]
[1744553171706,0.16575754,1575.4,1575.1,1.1871]
[1744553172102,0.16575754,1575.4,1575.1,1.25057736]
[1744553172317,0.16575754,1575.4,1575.1,8.3592921]
[1744553172527,6.34683,1575.6,1575.1,8.3592921]
[1744553172845,0.1638519,1575.3,1575.2,0.22088446]
[1744553173040,6.34683,1575.6,1575.2,0.22088446]
[1744553173252,0.16397896,1575.3,1575.2,0.22088446]
[1744553173458,12.69464,1575.5,1575.2,0.22088446]
[1744553173743,6.3472,1575.5,1575.2,0.22088446]
[1744553173945,0.16397896,1575.4,1575.1,4.1871]
[1744553174111,6.51157896,1575.4,1575.1,5.240707]
[1744553174442,6.51157896,1575.4,1575.1,4.1871]
[1744553174940,6.3483,1575.3,1575.1,1.1871]
[1744553175148,6.3483,1575.3,1575.0,3.0]
[1744553175319,0.16397896,1575.2,1575.0,3.0]
[1744553176320,0.16397896,1575.2,1575.1,0.06348077]
[1744553176518,0.16397896,1575.2,1575.0,3.0]
[1744553176519,6.3484,1575.2,1575.0,3.0]
[1744553176846,6.3488,1575.1,1574.9,10.3304]
[1744553177446,0.16868137,1575.0,1574.9,13.3304]
[1744553177651,6.51788137,1575.0,1574.9,9.1]
[1744553179365,0.16868137,1575.0,1574.9,9.16349279]
[1744553179564,0.16868137,1575.0,1574.9,15.2449596]
[1744553179864,12.69711,1575.2,1574.9,15.46597041]
[1744553180159,0.16868137,1575.0,1574.9,15.46597041]
[1744553180363,12.69711,1575.2,1574.9,15.46597041]
[1744553180726,0.16868137,1575.1,1574.9,15.46597041]
[1744553180927,6.34849,1575.2,1574.9,15.2449596]
[1744553181195,0.16868137,1575.1,1574.9,15.2449596]
[1744553181662,12.69713,1575.2,1574.9,15.2449596]
[1744553181965,6.3492,1575.0,1574.9,9.1]
[1744553182681,6.51788137,1575.0,1574.9,9.3213576]
[1744553182834,6.51788137,1575.0,1574.9,0.2213576]
[1744553183556,6.51788137,1575.0,1574.7,4.29389529]
[1744553183770,6.35041,1574.7,1574.6,0.0488]
[1744553184144,6.35041,1574.7,1574.6,0.27043544]
[1744553184343,6.51553312,1574.7,1574.6,0.27043544]
[1744553185380,7.79613312,1574.7,1574.6,0.27043544]
[1744553185769,7.79613312,1574.7,1574.6,0.0488]
[1744553191586,6.35243,1574.2,1574.1,0.05]
[1744553191942,6.50013535,1574.2,1574.1,0.05]
[1744553196150,6.35507,1573.6,1573.4,10.2595]
[1744553196350,0.14465162,1573.5,1573.4,10.2595]
[1744553196562,6.49990162,1573.5,1573.4,10.2595]
[1744553196786,6.35525,1573.5,1573.4,10.2595]
[1744553196993,12.7118,1573.4,1573.1,1.2185]
[1744553197169,12.7118,1573.4,1573.1,4.2185]
[1744553197361,0.12900003,1573.3,1573.1,1.2185]
[1744553197557,0.12900003,1573.3,1573.1,0.05]
[1744553197558,6.35622,1573.3,1573.1,0.05]
[1744553197785,0.12900003,1573.2,1573.1,0.05]
[1744553198161,6.48547003,1573.2,1573.1,0.05]
[1744553198694,7.64377003,1573.2,1573.1,0.05]
[1744553199553,0.12900003,1573.2,1573.1,0.05]
[1744553199757,6.35627,1573.3,1573.1,0.05]
[1744553199977,0.12900003,1573.2,1573.1,0.05]
[1744553200402,6.48547003,1573.2,1573.1,0.05]
[1744553201920,7.71427003,1573.2,1573.1,0.05]
[1744553202411,16.82427003,1573.2,1573.1,1e-05]
[1744553202613,16.82427003,1573.2,1572.2,20.95121126]
[1744553202614,1.2288,1572.7,1572.2,5.49510126]
[1744553202814,6.3601,1572.3,1572.2,5.49510126]
[1744553203135,6.35941,1572.5,1572.2,11.85556126]
[1744553203417,0.12059412,1572.4,1572.2,11.85556126]
[1744553203615,0.12059412,1572.4,1572.2,5.49510126]
[1744553204031,0.12059412,1572.4,1572.3,6.42369998]
[1744553204206,0.12059412,1572.4,1572.3,6.3601]
[1744553204384,6.3589,1572.6,1572.2,9.46059213]
[1744553204585,0.12059412,1572.5,1572.2,9.46059213]
[1744553204924,6.36051,1572.2,1572.1,0.05]
[1744553205218,6.3601,1572.3,1572.1,0.05]
[1744553205413,6.35887,1572.7,1572.1,0.05]
[1744553205414,7.3613,1572.9,1572.3,6.35989]
[1744553205616,6.35834,1572.8,1572.4,6.35956]
[1744553205924,12.71668,1572.8,1572.4,6.35956]
[1744553206222,6.35853,1572.7,1572.3,6.3601]
[1744553206417,6.3589,1572.6,1572.2,14.00115]
[1744553206618,6.3586,1572.7,1572.3,6.3599]
[1744553206983,12.71691,1572.8,1572.4,6.35968]
[1744553207185,13.96685,1572.9,1572.5,6.35908]
[1744553207523,13.96685,1572.9,1572.4,6.35952]
[1744553207524,12.71664,1572.8,1572.4,6.35952]
[1744553207686,6.35823,1572.8,1572.4,7.631481]
[1744553208110,6.35885,1572.7,1572.2,7.6409]
[1744553208430,6.35937,1572.5,1572.2,7.64087]
[1744553208787,6.35937,1572.5,1572.2,1.2804]
[1744553208999,7.609,1572.9,1572.2,1.2804]
[1744553209000,6.35891,1572.6,1572.2,7.6409]
[1744553209204,6.35891,1572.6,1572.2,7.64077]
[1744553209699,6.35956,1572.5,1572.2,1.2804]
[1744553210493,6.35892,1572.6,1572.2,7.64088]
[1744553210692,12.7181,1572.6,1572.2,7.70447649]
[1744553211191,6.35945,1572.5,1572.2,1.2804]
[1744553211400,12.71966,1572.4,1572.2,1.2804]
[1744553211605,6.35943,1572.5,1572.2,1.2804]
[1744553211933,6.35894,1572.6,1572.2,1.2804]
[1744553212084,7.3613,1572.9,1572.3,6.36009]
[1744553212290,7.3613,1572.9,1572.2,1.2804]
[1744553212291,6.35977,1572.4,1572.2,1.2804]
[1744553212517,6.35977,1572.4,1572.1,0.05]
[1744553212736,6.36051,1572.2,1572.1,0.05]
[1744553213793,1.1645,1572.5,1572.1,0.05]
[1744553213794,12.71954,1572.4,1572.1,0.05]
[1744553214092,6.3597,1572.4,1572.1,0.05]
[1744553214297,6.36051,1572.2,1572.1,0.05]
[1744553215537,7.58931,1572.2,1572.1,0.05]
[1744553216922,11.13931,1572.2,1572.1,0.05]
[1744553217107,10.59012,1572.0,1571.9,0.3892929]
[1744553217306,26.33712,1572.0,1571.9,2.9e-06]
[1744553217537,26.33712,1572.0,1571.1,0.05]
[1744553217538,6.36419,1571.3,1571.1,0.05]
[1744553217943,6.36371,1571.5,1571.1,0.05]
[1744553217944,6.36294,1571.6,1571.2,6.36456]
[1744553218144,6.36228,1571.8,1571.4,6.36357]
[1744553218343,7.59057,1571.9,1571.5,6.36325]
[1744553218533,4.2288,1571.9,1571.2,6.36453]
[1744553218785,6.36273,1571.7,1571.3,6.36383]
[1744553218930,6.36273,1571.7,1571.3,12.72776]
[1744553219141,1.2288,1571.9,1571.1,9.41464]
[1744553219142,6.36296,1571.6,1571.1,9.41464]
[1744553219447,6.36296,1571.6,1571.2,12.72872]
[1744553219606,6.36296,1571.6,1571.2,6.36431]
[1744553220041,6.36296,1571.6,1571.2,6.36436]
[1744553220207,12.72533,1571.7,1571.2,6.36436]
[1744553220407,1.2288,1571.9,1571.3,6.42746824]
[1744553220605,6.36324,1571.6,1571.2,6.36451]
[1744553220805,6.36339,1571.5,1571.1,6.41493]
[1744553221048,6.36378,1571.4,1571.1,0.05]
[1744553221246,1.225,1571.5,1571.1,0.05]
[1744553221411,6.36456,1571.2,1571.1,0.05]
[1744553221820,6.36432,1571.3,1571.1,0.05]
[1744553222149,7.58784,1571.7,1571.4,6.36369]
[1744553222343,7.58784,1571.7,1571.3,6.36411]
[1744553222567,7.58784,1571.7,1571.3,12.72802]
[1744553222767,6.36153,1572.0,1571.5,7.55734]
[1744553222970,6.362,1571.9,1571.5,7.55734]
[1744553223265,12.72413,1571.9,1571.5,7.55734]
[1744553223466,6.362,1571.9,1571.5,7.55734]
[1744553223791,6.36112,1572.1,1571.7,6.36232]
[1744553223966,1.225,1572.2,1571.8,6.42544974]
[1744553224173,6.36043,1572.3,1571.9,6.36169]
[1744553224468,7.58475,1572.4,1572.0,7.61888158]
[1744553224769,1.225,1572.4,1572.1,6.3609]
[1744553224972,1.2562,1572.7,1572.2,6.36051]
[1744553225187,1.2562,1573.0,1572.5,6.35897]
[1744553225348,1.2562,1573.0,1572.4,0.0635901]
[1744553225550,9.09,1573.2,1573.0,6.35724]
[1744553225551,1.2562,1573.2,1573.0,6.35724]
[1744553225749,6.35534,1573.5,1573.0,6.35724]
[1744553225750,7.61154,1573.5,1573.0,6.35724]
[1744553226060,7.61165,1573.5,1572.9,6.35729]
[1744553226255,7.61165,1573.5,1573.0,6.35708]
[1744553226451,6.35751,1573.0,1572.5,6.35929]
[1744553226648,6.35751,1573.0,1572.6,6.35873]
[1744553227264,6.35688,1573.1,1572.6,12.78093191]
[1744553227459,1.2562,1573.3,1572.6,10.5570351]
[1744553227786,6.35528,1573.5,1573.1,6.35686]
[1744553228158,12.7107,1573.5,1573.0,6.35702]
[1744553228365,12.71188,1573.4,1572.9,13.97868]
[1744553228564,6.35627,1573.3,1572.9,7.62101]
[1744553228961,6.35627,1573.3,1572.9,7.68457984]
[1744553229166,1.2562,1573.6,1572.9,2.66786198]
[1744553229385,6.35684,1573.2,1572.9,1.2636]
[1744553229569,4.2562,1573.6,1572.9,6.35755]
[1744553229570,6.35615,1573.3,1572.9,6.35755]
[1744553230185,13.96624,1573.6,1573.1,6.35661]
[1744553230492,6.35451,1573.7,1573.2,7.69059255]
[1744553230692,6.35451,1573.7,1573.2,14.04690255]
[1744553230892,6.35625,1573.3,1572.9,7.62849]
[1744553231192,10.3105,1573.8,1572.9,7.62849]
[1744553231193,6.35714,1573.1,1572.9,1.2709]
[1744553231385,6.35757,1573.0,1572.6,1.2709]
[1744553231581,6.35647,1573.2,1572.4,1.2709]
[1744553231765,6.35861,1572.7,1572.4,1.2709]
[1744553232295,1.70009253,1573.1,1572.4,7.63047]
[1744553232497,6.35839,1572.8,1572.4,7.63047]
[1744553232790,6.36058,1572.2,1571.9,1.2709]
[1744553232998,4.2225,1572.7,1571.9,1.2709]
[1744553232999,6.36012,1572.3,1571.9,1.2709]
[1744553233501,1.2225,1572.3,1571.7,1.2709]
[1744553233699,6.3622,1571.8,1571.6,9.086]
[1744553233901,6.36109,1572.1,1571.7,6.36252]
[1744553234056,6.36095,1572.1,1571.6,15.44887]
[1744553234395,6.36152,1572.0,1571.6,9.086]
[1744553234600,6.36253,1571.7,1571.4,1.2709]
[1744553234756,6.36253,1571.7,1571.2,19.46646126]
[1744553234962,6.36253,1571.7,1571.3,3.0]
[1744553235392,6.36253,1571.7,1571.2,13.97136]
[1744553235693,6.36253,1571.7,1571.3,3.22759643]
[1744553235878,6.36213,1571.8,1571.3,0.22759643]
[1744553236085,6.36375,1571.4,1571.3,0.22759643]
[1744553236285,7.56815,1571.4,1571.3,0.22759643]
[1744553236481,11.11815,1571.4,1571.3,6.43e-06]
[1744553236794,9.36456,1571.2,1571.1,0.05]
[1744553236996,6.36456,1571.2,1571.1,0.05]
[1744553237358,6.3643,1571.3,1571.1,0.05]
[1744553237583,6.36362,1571.5,1571.1,0.05]
[1744553237922,9.52053922,1572.1,1571.6,6.36277]
[1744553237923,7.5655,1572.1,1571.6,6.36277]
[1744553238070,7.5655,1572.1,1571.4,1.2426]
[1744553238071,6.36242,1571.8,1571.4,1.2426]
[1744553238271,6.36173,1571.9,1571.5,6.36314]
[1744553238475,6.36136,1572.0,1571.6,6.36289]
[1744553238676,6.36172,1572.0,1571.5,9.36327]
[1744553238908,6.36273,1571.7,1571.4,4.2426]
[1744553239183,6.36018,1572.3,1571.6,0.55]
[1744553239498,6.36056,1572.2,1571.7,6.36224]
[1744553239697,6.3614,1572.0,1571.6,15.45291]
[1744553239897,12.72305,1572.0,1571.5,12.72652]
[1744553240112,6.3614,1572.0,1571.6,6.36284]
[1744553240329,1.2044,1572.5,1571.8,1.2207]
[1744553240613,54.759,1573.3,1572.2,6.36023]
[1744553240614,12.71738,1572.7,1572.2,6.36023]
[1744553240775,6.35849,1572.7,1572.0,6.36127]
[1744553240971,1.77156462,1572.9,1572.2,6.3602]
[1744553241175,6.3581,1572.8,1572.3,6.42364848]
[1744553241403,6.3581,1572.8,1572.4,6.35969]
[1744553241613,1.2837,1572.9,1572.3,1.2195]
[1744553241818,6.35883,1572.7,1572.3,1.2195]
[1744553241997,1.2837,1572.9,1572.3,1.28309482]
[1744553242290,6.35867,1572.7,1572.3,7.57958]
[1744553242487,6.35846,1572.8,1572.3,7.57944]
[1744553242701,18.2,1573.2,1572.3,7.57944]
[1744553242702,6.35864,1572.7,1572.3,7.57944]
[1744553242919,12.71649,1572.8,1572.4,6.35951]
[1744553243283,6.3581,1572.8,1572.4,6.35951]
[1744553243715,6.35769,1572.9,1572.4,6.35948]
[1744553244022,6.35811,1572.8,1572.4,6.3596]
[1744553244518,6.35768,1572.9,1572.5,6.3593]
[1744553244718,6.35864,1572.7,1572.3,7.57956]
[1744553244915,12.71836,1572.6,1572.2,6.36047]
[1744553245413,12.71832,1572.6,1572.2,6.36047]
[1744553245615,1.73945562,1572.8,1572.0,10.351]
[1744553245829,6.36031,1572.3,1572.0,10.351]
[1744553245989,12.71974,1572.4,1572.0,16.71228]
[1744553246191,6.36091,1572.1,1572.0,9.075]
[1744553246723,6.36093,1572.1,1571.7,7.6383]
[1744553247227,6.36093,1572.1,1571.7,14.00061]
[1744553247588,6.36093,1572.1,1571.7,7.6383]
[1744553248119,6.36093,1572.1,1571.7,14.00069]
[1744553248320,6.36055,1572.2,1571.8,6.42557971]
[1744553248486,6.36055,1572.2,1571.9,6.36166]
[1744553249117,12.47012,1572.3,1571.9,6.36166]
[1744553249323,7.62329,1572.6,1571.8,0.06361212]
[1744553249488,1.264,1572.9,1572.4,6.35963]
[1744553249822,6.11,1573.0,1572.2,10.351]
[1744553249986,6.11,1573.0,1572.4,6.35955]
[1744553249987,3.0,1572.9,1572.4,6.35955]
[1744553250183,6.11,1573.0,1572.2,10.351]
[1744553250528,6.11,1573.1,1572.9,6.3575]
[1744553250823,12.71266,1573.3,1572.9,6.35747]
[1744553250980,12.71163,1573.4,1573.0,6.35723]
[1744553251181,6.3549,1573.6,1573.1,1.2398]
[1744553251386,6.3549,1573.6,1573.1,7.59667]
[1744553251724,4.09265881,1573.7,1573.3,6.35591]
[1744553251913,10.44716881,1573.7,1573.3,6.35591]
[1744553252108,6.35487,1573.6,1573.2,9.075]
[1744553252523,12.71002,1573.6,1573.2,9.075]
[1744553252743,6.35487,1573.6,1573.2,15.43125]
[1744553252940,10.44714881,1573.7,1573.3,6.35603]
[1744553253238,16.80194881,1573.7,1573.2,15.43125]
[1744553253801,12.70929,1573.7,1573.2,15.43125]
[1744553254002,6.35487,1573.6,1573.2,15.43125]
[1744553255451,6.35539,1573.5,1573.2,9.075]
[1744553255656,12.71104,1573.5,1573.1,1.2398]
[1744553255940,6.3549,1573.6,1573.2,6.41995716]
[1744553256298,12.71003,1573.6,1573.2,6.41995716]
[1744553256501,6.35449,1573.7,1573.2,6.35623]
[1744553256703,6.35426,1573.8,1573.4,6.35538]
[1744553256933,12.7086,1573.8,1573.4,6.35538]
[1744553257252,6.35426,1573.8,1573.4,6.35538]
[1744553257538,6.11,1574.1,1573.6,1.1682]
[1744553257704,6.35445,1573.7,1573.3,16.59503]
[1744553257905,6.35445,1573.7,1573.3,22.95094]
[1744553258107,6.35379,1573.9,1573.5,6.35523]
[1744553258404,6.35406,1573.8,1573.4,6.35545]
[1744553258616,6.35406,1573.8,1573.4,8.71406723]